bitfinex/quotes_SOLUSD_20250306
["timestamp","ask_amount","ask_price","bid_price","bid_amount"]
[1741257692510,0.28432314,152.08,152.06,0.033]
[1741257692717,26.68255482,152.07,152.06,0.033]
[1741257693447,26.68255482,152.07,152.04,0.17516157]
[1741257693654,26.68255482,152.05,152.04,0.033]
[1741257693825,26.96687796,152.08,152.04,0.033]
[1741257694028,26.68255482,152.05,152.04,0.17516157]
[1741257694347,33.25925482,152.05,152.04,0.17516157]
[1741257694528,33.54357796,152.05,152.04,0.033]
[1741257694854,33.54357796,152.05,151.99,81.333]
[1741257694855,20.0,152.02,151.99,81.333]
[1741257695049,26.68255482,152.0,151.99,81.333]
[1741257696019,53.36510964,152.0,151.99,0.033]
[1741257696449,60.22833278,152.0,151.99,0.033]
[1741257696862,33.54577796,152.0,151.99,0.033]
[1741257697361,60.22833278,152.0,151.99,0.033]
[1741257698252,33.54577796,152.0,151.99,0.033]
[1741257699656,26.68255482,152.0,151.99,0.033]
[1741257699824,26.68255482,152.01,151.99,0.033]
[1741257700233,26.68255482,152.0,151.99,0.033]
[1741257700743,60.37049435,152.0,151.99,0.033]
[1741257700943,26.68255482,152.0,151.99,0.033]
[1741257701124,26.68255482,152.03,152.0,0.14216157]
[1741257701329,26.68255482,152.04,152.0,215.94216157]
[1741257701749,26.68255482,152.08,152.02,26.68255482]
[1741257701957,6.575,152.09,152.03,26.82471639]
[1741257701958,26.68255482,152.09,152.03,26.82471639]
[1741257702128,26.68255482,152.1,152.05,26.82471639]
[1741257702324,26.68255482,152.1,152.05,242.62471639]
[1741257702549,26.68255482,152.1,152.05,215.94216157]
[1741257702730,26.68255482,152.11,152.09,0.14216157]
[1741257702927,36.8867972,152.15,152.09,242.62471639]
[1741257703141,10.20424238,152.15,152.12,0.14216157]
[1741257703338,26.68255482,152.17,152.12,0.14216157]
[1741257703858,26.68255482,152.16,152.1,26.82471639]
[1741257704442,33.25465482,152.16,152.1,26.82471639]
[1741257705137,26.68255482,152.16,152.1,26.82471639]
[1741257705965,33.25475482,152.16,152.1,26.82471639]
[1741257706264,33.25475482,152.16,152.13,0.14216157]
[1741257706966,26.68255482,152.16,152.13,0.14216157]
[1741257707132,0.03,152.17,152.13,0.14216157]
[1741257707335,33.28415482,152.17,152.13,0.14216157]
[1741257707535,26.71255482,152.17,152.13,0.14216157]
[1741257707976,33.28435482,152.17,152.13,0.14216157]
[1741257708155,26.68255482,152.16,152.13,81.44216157]
[1741257708765,33.25495482,152.16,152.13,81.44216157]
[1741257709767,33.25495482,152.16,152.13,393.44216157]
[1741257710174,26.68255482,152.15,152.13,393.44216157]
[1741257710341,6.5724,152.16,152.13,393.44216157]
[1741257710342,33.25495482,152.16,152.13,393.44216157]
[1741257712459,6.6016,152.17,152.13,393.44216157]
[1741257712657,0.03,152.17,152.13,242.62471639]
[1741257712864,6.6016,152.17,152.13,215.94216157]
[1741257713048,26.68255482,152.16,152.13,215.94216157]
[1741257713759,6.5724,152.15,152.13,215.94216157]
[1741257715648,6.5724,152.15,152.13,527.94216157]
[1741257715848,26.68255482,152.14,152.13,47.6065]
[1741257716053,26.68255482,152.14,152.1,182.1065]
[1741257716257,26.68255482,152.13,152.11,0.14216157]
[1741257716453,26.68255482,152.14,152.1,182.1065]
[1741257716965,33.25495482,152.15,152.11,0.14216157]
[1741257717272,26.68255482,152.13,152.11,0.14216157]
[1741257718062,26.68255482,152.14,152.11,0.14216157]
[1741257718249,33.25455482,152.16,152.11,0.14216157]
[1741257718860,26.68255482,152.13,152.11,0.14216157]
[1741257719054,26.68255482,152.13,152.11,47.74866157]
[1741257719368,26.68255482,152.12,152.11,47.74866157]
[1741257719873,23.0095,152.11,152.08,0.033]
[1741257720038,26.68255482,152.09,152.08,0.033]
[1741257720573,26.96687796,152.09,152.08,0.033]
[1741257720739,26.68255482,152.09,152.08,0.033]
[1741257724681,0.28432314,152.08,152.03,0.033]
[1741257724853,26.68255482,152.04,152.03,0.033]
[1741257725245,80.8,152.11,152.03,0.033]
[1741257725246,26.68255482,152.07,152.03,0.033]
[1741257725477,26.68255482,152.07,152.03,0.17516157]
[1741257725781,26.68255482,152.06,152.03,0.17516157]
[1741257726164,33.25855482,152.07,152.03,0.17516157]
[1741257726964,26.68255482,152.04,152.03,0.17516157]
[1741257727160,6.5737,152.12,152.03,215.97516157]
[1741257727484,33.25625482,152.12,152.06,26.82471639]
[1741257727676,26.68255482,152.11,152.06,0.14216157]
[1741257727880,26.68255482,152.1,152.06,0.14216157]
[1741257728072,26.68255482,152.1,152.05,0.14216157]
[1741257728257,6.5737,152.12,152.05,26.82471639]
[1741257728465,109.12235482,152.16,152.08,0.14216157]
[1741257728466,26.68255482,152.13,152.08,0.14216157]
[1741257728767,26.68255482,152.14,152.08,242.62471639]
[1741257729277,26.68255482,152.16,152.11,0.14216157]
[1741257729684,0.03,152.17,152.13,0.14216157]
[1741257729978,0.03,152.17,152.13,242.62471639]
[1741257731770,26.71255482,152.17,152.13,215.94216157]
[1741257732079,0.03,152.17,152.16,26.82471639]
[1741257732402,0.03,152.17,152.16,249.18111639]
[1741257732778,0.03,152.17,152.16,294.51332007]
[1741257732959,1.29790787,152.21,152.16,294.93980478]
[1741257733160,1.29790787,152.21,152.2,45.47436525]
[1741257733366,0.29790787,152.21,152.2,263.21654996]
[1741257733971,0.29790787,152.21,152.2,269.78684996]
[1741257734175,0.03,152.22,152.21,0.56864628]
[1741257734371,0.03,152.22,152.21,47.27973839]
[1741257734586,0.03,152.22,152.21,53.92553839]
[1741257734763,0.03,152.22,152.21,269.72553839]
[1741257734967,0.03,152.3,152.25,0.14216157]
[1741257735167,0.03,152.3,152.29,0.14216157]
[1741257735975,0.03,152.3,152.28,0.14216157]
[1741257736385,0.03,152.3,152.26,26.82471639]
[1741257736579,0.03,152.3,152.28,0.14216157]
[1741257736975,0.03,152.3,152.29,0.14216157]
[1741257737187,0.03,152.3,152.29,26.82471639]
[1741257737374,0.03,152.3,152.29,242.62471639]
[1741257738479,0.03,152.3,152.29,554.62471639]
[1741257740177,0.03,152.3,152.29,527.94216157]
[1741257741466,0.03,152.3,152.29,215.8]
[1741257741671,0.03,152.3,152.29,215.94216157]
[1741257741875,0.03,152.3,152.29,242.62471639]
[1741257743077,0.03,152.3,152.29,161.7512011]
[1741257743295,0.03,152.3,152.29,167.7724011]
[1741257743473,0.03,152.3,152.29,249.0724011]
[1741257743794,0.03,152.3,152.29,255.6388011]
[1741257744012,0.03,152.33,152.32,20.56864628]
[1741257744176,0.03,152.33,152.32,93.9613307]
[1741257744374,0.03,152.33,152.32,621.7613307]
[1741257744576,0.03,152.33,152.32,620.38340478]
[1741257745274,0.03,152.33,152.32,626.94850478]
[1741257747081,10.0,152.4,152.36,38.79181043]
[1741257747281,10.0,152.4,152.36,281.27436525]
[1741257747882,16.5617,152.4,152.36,281.27436525]
[1741257750203,16.5617,152.4,152.36,593.27436525]
[1741257750587,10.0,152.4,152.36,593.27436525]
[1741257750786,10.0,152.4,152.36,288.26424996]
[1741257750981,10.0,152.4,152.36,294.49644996]
[1741257751387,10.0,152.4,152.36,300.69644996]
[1741257751798,10.0,152.4,152.37,100.48829514]
[1741257751988,10.0,152.4,152.37,130.14108896]
[1741257752188,10.0,152.4,152.37,128.76384996]
[1741257752607,16.5616,152.4,152.37,81.27]
[1741257752803,10.0,152.4,152.37,107.95255482]
[1741257752996,10.0,152.4,152.37,127.17084996]
[1741257753805,10.0,152.4,152.37,439.17084996]
[1741257753990,10.0,152.4,152.37,445.73374996]
[1741257754591,10.0,152.4,152.37,412.48829514]
[1741257754799,10.0,152.4,152.37,439.17084996]
[1741257755198,10.0,152.4,152.37,445.73374996]
[1741257756610,10.0,152.4,152.37,439.17084996]
[1741257757113,10.0,152.4,152.37,580.23374996]
[1741257759510,10.0,152.4,152.37,573.67084996]
[1741257760516,10.0,152.4,152.37,563.55332117]
[1741257760701,10.0,152.4,152.37,544.4771876]
[1741257761009,16.5617,152.4,152.37,544.4771876]
[1741257761415,16.5617,152.4,152.37,563.55332117]
[1741257761416,10.0,152.4,152.37,563.55332117]
[1741257764404,16.5617,152.4,152.37,544.4771876]
[1741257764603,16.5617,152.4,152.37,544.33502603]
[1741257764804,16.5617,152.4,152.37,544.4771876]
[1741257765421,10.0,152.4,152.37,544.4771876]
[1741257766395,16.5617,152.4,152.37,544.4771876]
[1741257767122,10.0,152.4,152.37,544.4771876]
[1741257767704,10.0,152.4,152.37,563.12683646]
[1741257768302,16.5617,152.4,152.37,563.12683646]
[1741257768508,16.5617,152.4,152.37,544.4771876]
[1741257769402,10.0,152.4,152.37,544.4771876]
[1741257769603,16.5617,152.4,152.37,544.4771876]
[1741257770210,10.0,152.4,152.37,544.4771876]
[1741257771122,16.59502603,152.38,152.37,81.303]
[1741257771419,16.59502603,152.38,152.37,81.44516157]
[1741257771617,0.03,152.38,152.37,81.44516157]
[1741257771825,16.59502603,152.38,152.37,81.303]
[1741257772212,6.5925,152.38,152.37,81.44516157]
[1741257772412,6.5925,152.38,152.37,81.303]
[1741257772413,23.15752603,152.38,152.37,81.303]
[1741257772824,23.15752603,152.38,152.37,81.44516157]
[1741257775824,6.5925,152.38,152.37,81.44516157]
[1741257777524,23.58401074,152.38,152.37,0.033]
[1741257777709,39.99031074,152.38,152.33,182.4602]
[1741257777911,16.56502603,152.36,152.34,0.14216157]
[1741257778123,23.14096157,152.38,152.34,0.14216157]
[1741257778124,16.56502603,152.37,152.34,0.14216157]
[1741257778719,23.14096157,152.38,152.34,0.14216157]
[1741257778908,16.56502603,152.37,152.34,0.14216157]
[1741257779525,16.56502603,152.36,152.34,0.14216157]
[1741257779721,1.6629,152.33,152.27,47.9602]
[1741257779922,16.56502603,152.3,152.27,47.9602]
[1741257780111,16.56502603,152.3,152.28,0.14216157]
[1741257780512,16.56502603,152.29,152.27,47.9602]
[1741257780718,16.56502603,152.28,152.27,47.9602]
[1741257780907,16.56502603,152.29,152.28,0.14216157]
[1741257781112,16.56502603,152.29,152.27,47.9602]
[1741257781413,16.56502603,152.28,152.27,48.10236157]
[1741257781628,22.9779,152.32,152.26,16.56502603]
[1741257781929,39.54292603,152.32,152.27,0.14216157]
[1741257782111,16.56502603,152.31,152.27,0.14216157]
[1741257782311,16.56502603,152.28,152.24,182.4602]
[1741257782526,16.56502603,152.27,152.24,182.4602]
[1741257782718,16.56502603,152.27,152.25,0.14216157]
[1741257783110,0.28432314,152.31,152.24,182.4602]
[1741257783111,16.56502603,152.28,152.24,182.4602]
[1741257783312,16.56502603,152.27,152.24,182.4602]
[1741257783621,16.56502603,152.25,152.22,0.033]
[1741257783808,16.56502603,152.23,152.22,0.033]
[1741257784014,23.13402603,152.23,152.22,0.033]
[1741257784309,23.13352603,152.25,152.22,0.033]
[1741257785127,16.56502603,152.24,152.22,0.033]
[1741257786132,23.13372603,152.24,152.22,0.033]
[1741257787431,23.13372603,152.24,152.23,0.14216157]
[1741257788130,23.13372603,152.24,152.22,47.9932]
[1741257788309,16.56502603,152.23,152.22,47.9932]
[1741257788634,16.56502603,152.23,152.22,48.13536157]
[1741257789521,23.13402603,152.23,152.22,47.9932]
[1741257789708,23.41834917,152.23,152.22,47.9932]
[1741257793439,23.41834917,152.23,152.22,0.033]
[1741257794214,42.06799803,152.23,152.22,0.0001]
[1741257794530,18.64964886,152.22,152.21,0.0001]
[1741257794731,35.21467489,152.22,152.21,0.0001]
[1741257794927,6.71116157,152.23,152.21,0.0001]
[1741257795240,16.56502603,152.22,152.21,0.0001]
[1741257796040,16.84934917,152.22,152.21,0.0001]
[1741257796227,42.06839803,152.22,152.21,0.0001]
[1741257796431,43.60009803,152.22,152.21,0.0001]
[1741257799920,20.0,152.19,152.18,0.0001]
[1741257800120,36.56502603,152.19,152.18,0.0001]
[1741257801242,43.13572603,152.19,152.18,0.0001]
[1741257802947,6.5707,152.19,152.18,0.0001]
[1741257803241,6.5698,152.21,152.18,0.0001]
[1741257803421,23.13482603,152.21,152.18,0.0001]
[1741257803623,16.56502603,152.19,152.18,0.0001]
[1741257805328,23.13572603,152.19,152.18,0.0001]
[1741257806420,6.5707,152.19,152.18,0.0001]
[1741257807239,6.5703,152.2,152.18,0.0001]
[1741257808542,23.13532603,152.2,152.18,0.0001]
[1741257809549,6.5703,152.2,152.18,0.0001]
[1741257811043,16.56502603,152.19,152.18,0.0001]
[1741257812470,23.13572603,152.19,152.18,0.0001]
[1741257815959,42.06969803,152.19,152.18,0.0001]
[1741257816157,24.68802603,152.19,152.18,0.0001]
[1741257816544,23.13572603,152.19,152.18,0.0001]
[1741257817349,6.5707,152.19,152.18,0.0001]
[1741257818560,16.56502603,152.21,152.18,0.0001]
[1741257818865,0.03,152.22,152.18,0.0001]
[1741257819062,0.03,152.19,152.18,64.6674876]
[1741257819760,0.03,152.19,152.18,199.1674876]
[1741257821860,0.03,152.19,152.18,511.1674876]
[1741257822448,0.03,152.19,152.18,536.38823646]
[1741257822745,0.03,152.22,152.21,0.14216157]
[1741257822950,0.03,152.22,152.21,36.89763646]
[1741257823152,0.03,152.22,152.21,219.35783646]
[1741257824176,0.03,152.22,152.21,226.35412117]
[1741257825649,0.03,152.22,152.21,538.35412117]
[1741257827370,16.4125,152.33,152.23,18.79181043]
[1741257827371,32.97752603,152.33,152.23,18.79181043]
[1741257827668,6.5642,152.34,152.3,0.14216157]
[1741257827978,6.5642,152.34,152.3,48.10236157]
[1741257828875,39.53982603,152.34,152.3,48.10236157]
[1741257829054,16.56502603,152.33,152.3,48.10236157]
[1741257829257,16.56502603,152.33,152.3,0.14216157]
[1741257830477,39.53982603,152.34,152.3,0.14216157]
[1741257830661,16.56502603,152.33,152.3,0.14216157]
[1741257831477,22.9748,152.34,152.3,0.14216157]
[1741257831656,39.53982603,152.34,152.3,0.14216157]
[1741257832373,39.56982603,152.34,152.3,0.14216157]
[1741257832870,16.56502603,152.33,152.3,0.14216157]
[1741257834389,6.5651,152.32,152.3,0.14216157]
[1741257834993,6.5651,152.32,152.3,48.10236157]
[1741257836581,23.13012603,152.32,152.3,47.9602]
[1741257836776,6.5651,152.32,152.31,0.14216157]
[1741257837880,23.13012603,152.32,152.31,0.14216157]
[1741257838961,6.5651,152.32,152.31,0.14216157]
[1741257841559,23.13012603,152.32,152.31,0.14216157]
[1741257841764,23.13012603,152.32,152.24,182.4602]
[1741257841964,32.97782603,152.32,152.26,16.56502603]
[1741257842184,16.4128,152.32,152.28,0.14216157]
[1741257842361,6.5942,152.34,152.32,0.14216157]
[1741257842561,0.03,152.34,152.32,64.6673876]
[1741257842980,0.03,152.34,152.32,360.10236157]
[1741257843185,16.56502603,152.33,152.32,47.9602]
[1741257843496,16.56502603,152.33,152.32,48.10236157]
[1741257844194,0.03,152.34,152.33,0.14216157]
[1741257846389,0.03,152.34,152.33,328.81957757]
[1741257846564,0.03,152.34,152.33,542.87826127]
[1741257846897,0.03,152.34,152.33,230.87826127]
[1741257847182,0.03,152.34,152.33,188.66476157]
[1741257847389,0.03,152.34,152.33,205.2375277]
[1741257848087,0.03,152.34,152.33,188.66476157]
[1741257848581,0.03,152.34,152.33,205.2375277]
[1741257849371,0.03,152.34,152.33,223.88717656]
[1741257849776,0.03,152.34,152.33,535.88717656]
[1741257851063,0.03,152.34,152.33,542.87826127]
[1741257852984,0.03,152.34,152.33,223.88717656]
[1741257853369,0.03,152.34,152.33,223.74501499]
[1741257853581,0.03,152.34,152.33,223.88717656]
[1741257855969,0.03,152.34,152.33,535.88717656]
[1741257856592,16.60276613,152.34,152.33,47.9602]
[1741257856977,16.60276613,152.34,152.27,205.22636613]
[1741257857291,16.60276613,152.34,152.3,0.14216157]
[1741257857481,0.03,152.34,152.3,0.14216157]
[1741257858180,0.03,152.34,152.31,16.7149277]
[1741257858387,0.03,152.34,152.31,199.1751277]
[1741257858692,16.60276613,152.34,152.31,182.60236157]
[1741257858870,16.57276613,152.33,152.31,182.60236157]
[1741257859277,0.03,152.34,152.31,182.60236157]
[1741257859278,16.60276613,152.34,152.31,182.60236157]
[1741257859776,16.57276613,152.33,152.31,182.60236157]
[1741257859997,16.57276613,152.32,152.28,47.9602]
[1741257860182,16.57276613,152.29,152.22,205.51686613]
[1741257860366,16.57276613,152.28,152.23,0.14216157]
[1741257860903,6.5672,152.27,152.22,205.51686613]
[1741257861072,6.5672,152.27,152.23,0.14216157]
[1741257861471,22.9854,152.27,152.22,205.51686613]
[1741257861683,39.55816613,152.27,152.22,182.4932]
[1741257862684,22.9854,152.27,152.23,0.14216157]
[1741257862991,22.9854,152.27,152.23,312.14216157]
[1741257863674,39.55816613,152.27,152.23,312.14216157]
[1741257864671,39.55816613,152.27,152.23,494.60236157]
[1741257864873,16.57276613,152.26,152.23,494.60236157]
[1741257865682,6.5681,152.25,152.23,494.60236157]
[1741257868094,32.99096613,152.27,152.23,494.60236157]
[1741257868281,6.5677,152.26,152.23,494.60236157]
[1741257870593,22.9869,152.26,152.23,494.60236157]
[1741257870794,39.55966613,152.26,152.23,494.60236157]
[1741257871272,16.57276613,152.25,152.22,0.033]
[1741257871477,16.57276613,152.24,152.22,0.033]
[1741257871789,16.57276613,152.25,152.22,0.033]
[1741257872791,6.5685,152.24,152.22,0.033]
[1741257873509,6.5677,152.26,152.22,0.033]
[1741257874384,6.5677,152.26,152.23,0.14216157]
[1741257875013,23.14046613,152.26,152.23,0.14216157]
[1741257875178,16.57276613,152.24,152.22,0.033]
[1741257875385,16.57276613,152.23,152.22,0.033]
[1741257875888,16.57276613,152.23,152.2,47.9602]
[1741257876092,16.57276613,152.21,152.2,47.9602]
[1741257876622,16.57276613,152.21,152.18,0.0001]
[1741257876810,16.57276613,152.19,152.18,0.0001]
[1741257876987,16.57276613,152.19,152.18,0.14226157]
[1741257877411,23.14346613,152.19,152.18,0.14226157]
[1741257877687,6.5707,152.19,152.18,0.0001]
[1741257877997,23.14346613,152.19,152.18,0.0001]
[1741257878191,16.57276613,152.21,152.18,0.0001]
[1741257878396,36.57276613,152.21,152.18,0.0001]
[1741257879117,6.5691,152.23,152.18,31.2756277]
[1741257879331,3.33618702,152.27,152.23,0.14216157]
[1741257879623,6.5674,152.27,152.23,165.7755277]
[1741257879800,23.14016613,152.27,152.23,149.20276157]
[1741257880695,16.57276613,152.25,152.22,0.14216157]
[1741257880896,16.57276613,152.24,152.22,0.14216157]
[1741257881103,16.57276613,152.23,152.19,0.033]
[1741257881305,16.57276613,152.22,152.19,0.033]
[1741257881900,16.57276613,152.2,152.19,0.033]
[1741257883499,23.14306613,152.2,152.19,0.033]
[1741257884009,23.14306613,152.2,152.18,0.0001]
[1741257884316,16.85708927,152.19,152.18,0.0001]
[1741257885613,23.42778927,152.19,152.18,0.0001]
[1741257887553,23.42778927,152.19,152.09,14.5606]
[1741257887554,20.0,152.16,152.09,14.5606]
[1741257887708,16.57276613,152.13,152.09,14.5606]
[1741257887900,16.57276613,152.14,152.1,0.14216157]
[1741257888101,36.57276613,152.16,152.1,16.7149277]
[1741257888302,16.57276613,152.15,152.1,16.7149277]
[1741257888532,16.57276613,152.14,152.1,0.14216157]
[1741257889017,20.0,152.16,152.1,0.14216157]
[1741257889325,16.57276613,152.15,152.1,0.14216157]
[1741257890322,6.5725,152.15,152.12,0.14216157]
[1741257890527,16.57276613,152.17,152.13,0.14216157]
[1741257890713,16.57276613,152.16,152.13,0.14216157]
[1741257890915,16.57276613,152.15,152.13,0.14216157]
[1741257891332,16.57276613,152.14,152.13,0.14216157]
[1741257891712,16.57276613,152.15,152.13,0.14216157]
[1741257892330,6.5728,152.14,152.13,0.14216157]
[1741257894038,33.00286613,152.16,152.13,0.14216157]
[1741257894739,16.57276613,152.15,152.13,0.14216157]
[1741257895318,33.00286613,152.16,152.13,0.14216157]
[1741257896237,23.14476613,152.16,152.13,0.14216157]
[1741257896921,43.14476613,152.16,152.13,0.14216157]
[1741257897122,6.5716,152.17,152.15,0.14216157]
[1741257898220,6.6011,152.18,152.15,0.14216157]
[1741257899134,0.03,152.18,152.15,0.14216157]
[1741257899339,0.03,152.18,152.16,0.14216157]
[1741257899638,0.03,152.18,152.16,16.7149277]
[1741257900225,0.03,152.18,152.16,343.2755277]
[1741257900434,0.03,152.18,152.17,16.7149277]
[1741257900630,0.03,152.18,152.17,31.2755277]
[1741257901931,0.03,152.18,152.17,14.70276157]
[1741257902438,0.03,152.18,152.17,14.5606]
[1741257903047,0.03,152.18,152.17,14.70276157]
[1741257907452,16.60276613,152.18,152.16,0.033]
[1741257909460,0.03,152.18,152.17,0.14216157]
[1741257909862,0.03,152.18,152.16,0.17516157]
[1741257911035,0.03,152.18,152.17,16.7149277]
[1741257912655,0.03,152.18,152.17,35.36457656]
[1741257913479,0.03,152.18,152.17,192.62497656]
[1741257913631,0.03,152.18,152.17,199.36276127]
[1741257913835,6.5664,152.29,152.21,18.79181043]
[1741257914061,6.5664,152.29,152.25,0.14216157]
[1741257914262,39.55516613,152.29,152.25,14.70276157]
[1741257915870,23.13916613,152.29,152.25,14.70276157]
[1741257916363,6.5664,152.29,152.25,14.70276157]
[1741257916739,16.4129,152.32,152.25,14.70276157]
[1741257916740,6.5648,152.33,152.28,16.7149277]
[1741257916947,0.03,152.34,152.29,16.7149277]
[1741257917237,0.03,152.34,152.33,0.14216157]
[1741257917455,0.03,152.34,152.33,14.70276157]
[1741257918638,0.03,152.34,152.33,31.2755277]
[1741257918866,0.03,152.34,152.33,184.42517656]
[1741257919255,0.03,152.34,152.33,191.2740997]
[1741257919760,0.03,152.34,152.33,503.2740997]
[1741257919958,0.03,152.34,152.33,496.7094997]
[1741257921067,0.03,152.34,152.33,503.2740997]
[1741257921260,0.03,152.34,152.33,480.13673357]
[1741257921466,0.03,152.34,152.33,486.7094997]
[1741257921958,0.03,152.34,152.33,493.41626127]
[1741257923249,0.03,152.35,152.34,19.21829514]
[1741257923460,0.03,152.37,152.36,38.933972]
[1741257923776,0.03,152.38,152.37,18.933972]
[1741257923947,0.03,152.38,152.37,174.56733813]
[1741257924445,0.03,152.38,152.37,174.7094997]
[1741257925256,0.03,152.38,152.37,174.42517656]
[1741257925750,0.03,152.38,152.37,139.20276157]
[1741257926968,0.03,152.38,152.37,4.5606]
[1741257927274,0.03,152.38,152.37,4.70276157]
[1741257927458,23.16526613,152.38,152.37,4.70276157]
[1741257927660,23.16526613,152.38,152.37,4.5606]
[1741257928168,0.0005,152.38,152.37,4.5606]
[1741257928467,16.57326613,152.38,152.37,0.0001]
[1741257928662,0.28432314,152.37,152.29,0.0001]
[1741257928844,16.57276613,152.34,152.29,0.0001]
[1741257929042,0.28432314,152.37,152.29,0.0001]
[1741257929248,16.57276613,152.34,152.29,0.0001]
[1741257929449,6.5642,152.34,152.31,0.14216157]
[1741257929875,1.84494702,152.35,152.34,0.14216157]
[1741257930080,16.57276613,152.36,152.34,0.14216157]
[1741257930685,36.57276613,152.36,152.32,0.14216157]
[1741257930872,16.57276613,152.36,152.32,0.14216157]
[1741257931180,16.57276613,152.38,152.34,0.14216157]
[1741257931384,10.0,152.4,152.36,0.14216157]
[1741257931589,10.0,152.4,152.37,16.7149277]
[1741257932271,6.5915,152.41,152.37,16.7149277]
[1741257932784,23.16426613,152.41,152.37,0.14216157]
[1741257933488,6.5915,152.41,152.37,0.14216157]
[1741257933656,6.5915,152.41,152.37,16.7149277]
[1741257934372,0.03,152.41,152.39,16.57276613]
[1741257934580,0.03,152.41,152.4,16.7149277]
[1741257935455,0.03,152.41,152.4,0.14216157]
[1741257938366,26.5441777,152.41,152.4,0.14216157]
[1741257938675,6.56762314,152.4,152.34,0.0001]
[1741257938872,26.5141777,152.35,152.3,0.0001]
[1741257939267,26.5141777,152.36,152.31,26.5141777]
[1741257939472,6.5625,152.38,152.34,0.14216157]
[1741257939664,6.5625,152.38,152.34,26.65643927]
[1741257940102,6.5616,152.4,152.36,0.14216157]
[1741257940460,26.5141777,152.39,152.36,0.14216157]
[1741257940660,26.5141777,152.39,152.35,0.14216157]
[1741257942063,6.5625,152.38,152.35,0.14216157]
[1741257942258,26.5141777,152.39,152.35,0.14216157]
[1741257942757,26.5141777,152.36,152.35,0.14216157]
[1741257942994,26.5141777,152.37,152.35,0.14216157]
[1741257943154,26.5141777,152.37,152.34,134.5001]
[1741257943555,26.5141777,152.37,152.35,0.14216157]
[1741257943756,26.5141777,152.36,152.35,0.14216157]
[1741257944387,26.5141777,152.36,152.34,134.5001]
[1741257944555,26.5141777,152.35,152.34,134.5001]
[1741257944758,26.5141777,152.36,152.31,0.14216157]
[1741257945487,26.5141777,152.35,152.3,0.14226157]
[1741257945690,26.5141777,152.33,152.3,0.14226157]
[1741257945880,26.5141777,152.32,152.3,0.0001]
[1741257946084,6.5655,152.31,152.3,0.0001]
[1741257946260,26.5141777,152.33,152.29,0.14216157]
[1741257946466,6.5651,152.32,152.29,0.14216157]
[1741257947073,26.5141777,152.33,152.29,0.14216157]
[1741257947602,33.0788777,152.33,152.29,0.14216157]
[1741257947783,33.0788777,152.33,152.28,0.0001]
[1741257948089,26.5141777,152.32,152.28,0.0001]
[1741257948278,6.5652,152.32,152.28,0.0001]
[1741257948457,6.5652,152.32,152.29,0.14216157]
[1741257948662,33.0789777,152.33,152.29,0.14216157]
[1741257949078,6.5648,152.33,152.29,0.14216157]
[1741257949281,33.0789777,152.33,152.28,0.0001]
[1741257950390,26.5141777,152.35,152.3,0.14216157]
[1741257950563,33.0775777,152.36,152.3,26.65643927]
[1741257950760,26.5141777,152.37,152.32,0.14216157]
[1741257950967,6.5626,152.38,152.32,0.0001]
[1741257951264,33.0767777,152.38,152.34,0.14216157]
[1741257951465,26.5141777,152.37,152.34,0.14216157]
[1741257951677,33.0767777,152.38,152.34,0.14216157]
[1741257952399,6.5626,152.38,152.34,0.14216157]
[1741257954977,33.0767777,152.38,152.32,26.65643927]
[1741257955186,6.5626,152.38,152.32,26.65643927]
[1741257955393,33.0767777,152.38,152.32,26.65643927]
[1741257955590,6.5626,152.38,152.34,0.14216157]
[1741257956089,6.5626,152.38,152.35,0.14216157]
[1741257958090,0.03,152.39,152.37,0.14216157]
[1741257958395,0.03,152.39,152.38,0.14216157]
[1741257959192,0.03,152.39,152.38,26.65682047]
[1741257959490,0.03,152.39,152.38,26.65692047]
[1741257959891,0.03,152.39,152.38,0.14226157]
[1741257960398,0.03,152.39,152.38,26.65692047]
[1741257961095,0.03,152.39,152.38,186.79555404]
[1741257961293,0.03,152.39,152.38,193.19985404]
[1741257961683,0.03,152.39,152.38,186.21086933]
[1741257962375,0.03,152.39,152.38,167.56122047]
[1741257962973,0.03,152.39,152.38,186.21086933]
[1741257963384,0.03,152.39,152.38,159.69621043]
[1741257963590,0.03,152.39,152.38,186.21086933]